bitfinex/quotes_BTCUSD_20240605
["timestamp","ask_amount","ask_price","bid_price","bid_amount"]
[1717598355639,0.24196278,70918.0,70917.0,0.241009]
[1717598355855,0.24196278,70918.0,70917.0,0.1]
[1717598356060,0.24196278,70918.0,70917.0,0.001]
[1717598356460,0.24196278,70918.0,70917.0,0.142009]
[1717598357353,0.24196278,70918.0,70917.0,0.001]
[1717598357354,0.26196278,70918.0,70917.0,0.001]
[1717598357565,0.24196278,70918.0,70917.0,0.001]
[1717598357906,0.25196278,70918.0,70917.0,0.001]
[1717598358111,0.01,70917.0,70915.0,0.141013]
[1717598358441,0.00359252,70909.0,70908.0,0.01052274]
[1717598358799,0.02038061,70909.0,70908.0,0.01052274]
[1717598359037,0.00359252,70895.0,70891.0,0.282121]
[1717598359242,0.00359252,70897.0,70896.0,0.141051]
[1717598359442,0.00359252,70897.0,70896.0,0.14099125]
[1717598359588,0.16569252,70897.0,70896.0,0.14099125]
[1717598359955,0.00359252,70889.0,70888.0,0.002]
[1717598360368,0.00359252,70889.0,70888.0,0.143067]
[1717598360369,0.16063335,70889.0,70888.0,0.143067]
[1717598360566,0.4768,70901.0,70888.0,0.002]
[1717598360567,0.00359252,70892.0,70888.0,0.002]
[1717598360785,0.1,70912.0,70888.0,0.002]
[1717598360786,0.00359252,70927.0,70918.0,0.141007]
[1717598361030,0.04386852,70929.0,70918.0,0.423022]
[1717598361031,0.00559252,70929.0,70918.0,0.423022]
[1717598361244,0.00559252,70929.0,70918.0,0.84945593]
[1717598361447,0.1503,70928.0,70918.0,0.99667281]
[1717598361675,0.1503,70928.0,70918.0,1.04845562]
[1717598362119,0.00359252,70927.0,70918.0,0.90744862]
[1717598362350,0.1503,70928.0,70927.0,0.14099]
[1717598362574,0.1503,70928.0,70927.0,0.24099]
[1717598362800,0.15389252,70928.0,70927.0,0.24099]
[1717598363988,0.1503,70928.0,70927.0,0.24099]
[1717598364230,0.15389252,70928.0,70927.0,0.24099]
[1717598365313,0.1503,70928.0,70927.0,0.24099]
[1717598365730,0.15389252,70928.0,70927.0,0.24099]
[1717598365960,0.1503,70928.0,70927.0,0.24099]
[1717598366740,0.15389252,70928.0,70927.0,0.24099]
[1717598366950,0.1503,70928.0,70927.0,0.52297]
[1717598367121,0.15389252,70928.0,70927.0,0.52297]
[1717598367353,0.1503,70928.0,70927.0,0.52297]
[1717598367548,0.1503,70928.0,70927.0,0.52597]
[1717598367772,0.1503,70928.0,70927.0,0.56768797]
[1717598368091,0.002,70929.0,70928.0,0.422964]
[1717598368532,0.002,70929.0,70928.0,0.56468197]
[1717598368727,0.002,70929.0,70928.0,0.84665797]
[1717598369380,0.002,70929.0,70928.0,0.9910769]
[1717598369793,0.002,70929.0,70928.0,0.94935893]
[1717598371100,0.002,70929.0,70928.0,0.99786843]
[1717598371329,0.002,70929.0,70928.0,0.98786843]
[1717598372607,0.002,70929.0,70928.0,1.09747125]
[1717598372864,0.002,70929.0,70928.0,1.09747223]
[1717598373197,0.002,70929.0,70928.0,1.09847223]
[1717598373399,0.002,70929.0,70928.0,1.10147223]
[1717598374012,0.00559252,70929.0,70928.0,0.99186843]
[1717598374238,1e-08,70934.0,70933.0,0.140978]
[1717598374459,0.0070959,70934.0,70933.0,0.25058586]
[1717598374612,0.2725959,70934.0,70933.0,0.10960786]
[1717598374807,0.2725959,70934.0,70931.0,0.140981]
[1717598374808,0.02,70932.0,70931.0,0.140981]
[1717598375031,0.00709381,70932.0,70931.0,0.140981]
[1717598375232,0.01,70933.0,70931.0,0.25058886]
[1717598375435,0.01,70933.0,70931.0,0.140981]
[1717598375703,0.01,70933.0,70929.0,0.10960786]
[1717598375704,0.15146813,70932.0,70930.0,0.10960786]
[1717598375905,0.15146813,70932.0,70903.0,0.03711818]
[1717598375906,0.153,70915.0,70901.0,0.00751921]
[1717598376078,0.153,70915.0,70913.0,0.43336945]
[1717598376281,0.153,70915.0,70909.0,0.141024]
[1717598377193,0.163,70915.0,70909.0,0.141024]
[1717598377395,0.01,70913.0,70899.0,0.141045]
[1717598377611,0.1635,70912.0,70903.0,0.141037]
[1717598377966,0.16990215,70912.0,70905.0,0.141033]
[1717598378182,0.01,70910.0,70905.0,0.141033]
[1717598379635,0.0751,70903.0,70893.0,0.00751921]
[1717598379835,0.0751,70903.0,70899.0,0.141045]
[1717598379836,0.00620359,70902.0,70899.0,0.141045]
[1717598380052,0.00620359,70902.0,70895.0,0.141053]
[1717598380270,0.00620359,70902.0,70896.0,0.241051]
[1717598380508,0.2,70913.0,70891.0,0.102]
[1717598380509,0.4,70938.0,70902.0,0.2362]
[1717598380726,0.1522,70945.0,70902.0,0.2362]
[1717598380727,0.0751,70933.0,70918.0,0.07222824]
[1717598380934,0.1522,70932.0,70914.0,0.00751921]
[1717598381170,0.1522,70932.0,70921.0,0.141]
[1717598381391,0.1522,70932.0,70922.0,0.1]
[1717598381610,0.1522,70932.0,70922.0,0.240998]
[1717598382022,0.1622,70932.0,70922.0,0.240998]
[1717598382474,0.1622,70932.0,70923.0,0.140997]
[1717598382687,0.01,70929.0,70923.0,0.140997]
[1717598382886,0.01,70928.0,70923.0,0.140997]
[1717598383304,0.01,70927.0,70923.0,0.140997]
[1717598383682,0.0825,70924.0,70905.0,0.00751921]
[1717598383887,0.01,70923.0,70908.0,0.07222824]
[1717598384096,0.01,70923.0,70916.0,0.141011]
[1717598384298,0.0825,70924.0,70905.0,0.10751921]
[1717598384299,0.01,70919.0,70905.0,0.10751921]
[1717598384506,0.01,70919.0,70913.0,0.141016]
[1717598384866,0.29811893,70922.0,70918.0,0.141006]
[1717598385045,0.29811893,70922.0,70919.0,0.141004]
[1717598385046,0.1537,70922.0,70919.0,0.141004]
[1717598385224,0.1537,70922.0,70921.0,0.141001]
[1717598385423,0.1537,70922.0,70907.0,0.1]
[1717598385649,0.1537,70922.0,70911.0,0.00751921]
[1717598385848,0.1537,70922.0,70916.0,0.002]
[1717598385992,0.1537,70922.0,70916.0,0.14301]
[1717598386189,0.1537,70922.0,70916.0,0.002]
[1717598386411,0.01,70921.0,70916.0,0.002]
[1717598386627,0.01,70920.0,70916.0,0.002]
[1717598387336,0.1537,70922.0,70917.0,0.141008]
[1717598387534,0.01,70920.0,70917.0,0.141008]
[1717598387943,0.01,70919.0,70917.0,0.141008]
[1717598388391,0.01,70918.0,70917.0,0.141008]
[1717598388987,0.1537,70922.0,70917.0,0.141008]
[1717598389351,0.14441893,70921.0,70905.0,0.00751921]
[1717598389551,0.01,70917.0,70912.0,0.141018]
[1717598389757,0.14441893,70921.0,70901.0,0.1]
[1717598389758,0.01,70915.0,70913.0,0.141017]
[1717598390084,0.14441893,70921.0,70913.0,0.141017]
[1717598390085,0.01,70917.0,70913.0,0.141017]
[1717598390296,0.01,70915.0,70913.0,0.141017]
[1717598390702,0.14441893,70921.0,70906.0,0.141031]
[1717598390703,0.01,70914.0,70906.0,0.141031]
[1717598390924,0.2356,70913.0,70907.0,0.1]
[1717598391247,0.2356,70913.0,70909.0,0.141024]
[1717598391478,0.2356,70913.0,70910.0,0.141022]
[1717598393381,0.2356,70913.0,70910.0,0.142022]
[1717598394361,0.23564,70913.0,70910.0,0.142022]
[1717598394746,0.23564,70913.0,70910.0,0.144022]
[1717598394942,0.23564,70913.0,70911.0,0.14102]
[1717598395145,0.23564,70913.0,70912.0,0.141019]
[1717598395350,0.23564,70913.0,70912.0,0.116019]
[1717598395549,0.23564,70913.0,70912.0,0.12353821]
[1717598395979,0.23564,70913.0,70912.0,0.116019]
[1717598396152,0.23564,70913.0,70908.0,0.141026]
[1717598396362,0.01,70911.0,70908.0,0.141026]
[1717598396546,0.01,70911.0,70901.0,0.1]
[1717598396747,0.01,70911.0,70899.0,0.00751921]
[1717598396974,0.01,70911.0,70900.0,0.00751921]
[1717598397145,0.01,70909.0,70903.0,0.141036]
[1717598397351,0.23564,70913.0,70906.0,0.14103]
[1717598397760,0.01,70911.0,70908.0,0.001]
[1717598398014,0.01,70909.0,70908.0,0.001]
[1717598398183,0.01,70911.0,70908.0,0.001]
[1717598399189,0.01,70912.0,70908.0,0.001]
[1717598399386,0.23547031,70913.0,70908.0,0.142027]
[1717598399613,0.23547031,70913.0,70908.0,0.141027]
[1717598399829,0.23633031,70913.0,70908.0,0.141027]
[1717598400277,0.24633031,70913.0,70910.0,0.02104891]
[1717598400705,0.23633031,70913.0,70910.0,0.02104891]
[1717598400908,0.01,70912.0,70910.0,0.02104891]
[1717598401079,0.0170515,70911.0,70910.0,0.02104891]
[1717598401287,0.01,70911.0,70910.0,0.02104891]
[1717598401500,0.01,70911.0,70908.0,0.001]
[1717598401666,0.23633031,70913.0,70908.0,0.001]
[1717598402098,0.23633031,70913.0,70910.0,0.07222824]
[1717598402322,0.158,70913.0,70912.0,0.141019]
[1717598403175,0.158,70913.0,70910.0,0.141022]
[1717598403824,0.158,70913.0,70908.0,0.001]
[1717598403825,0.158,70913.0,70912.0,0.002]
[1717598404418,0.168,70913.0,70912.0,0.002]
[1717598405492,0.168,70913.0,70912.0,0.003]
[1717598406030,0.29,70922.0,70912.0,0.14741893]
[1717598406230,0.1485,70940.0,70912.0,0.14741893]
[1717598406440,0.00017033,71778.0,70912.0,0.14741893]
[1717598406441,0.08415424,70960.0,70957.0,0.14093]
[1717598406687,0.004,70979.0,70978.0,0.240888]
[1717598406892,0.004,70979.0,70978.0,0.36585096]
[1717598407119,0.004,70979.0,70978.0,0.57089355]
[1717598407381,0.004,70979.0,70978.0,0.54593059]
[1717598407653,0.004,70979.0,70978.0,0.55593059]
[1717598407985,0.004,70979.0,70978.0,0.57988752]
[1717598408136,0.004,70979.0,70978.0,0.55593059]
[1717598408383,0.154,71008.0,70988.0,0.30149166]
[1717598408714,0.002,71009.0,70988.0,0.54591059]
[1717598409566,0.002,71009.0,70988.0,0.55591059]
[1717598409786,0.002,71009.0,70988.0,0.54591059]
[1717598410000,0.0773,71001.0,70988.0,0.54591059]
[1717598410383,0.0773,71001.0,70988.0,0.6494843]
[1717598410626,0.0773,71001.0,70988.0,0.62877557]
[1717598410830,0.01744219,71000.0,70988.0,0.46683743]
[1717598411032,0.1592,70991.0,70988.0,0.40149166]
[1717598411418,0.1592,70991.0,70988.0,0.48429632]
[1717598411688,0.1592,70998.0,70988.0,0.48529632]
[1717598411910,0.1592,70998.0,70988.0,0.54691059]
[1717598412834,0.1592,70998.0,70988.0,0.40349166]
[1717598413071,0.1592,70998.0,70988.0,0.50792471]
[1717598413279,0.1592,70998.0,70988.0,0.50592471]
[1717598413512,0.1592,70998.0,70988.0,0.40249166]
[1717598413929,0.1592,70998.0,70988.0,0.54691059]
[1717598414146,0.0104,71000.0,70988.0,0.54691059]
[1717598414348,0.0104,71000.0,70998.0,0.28395345]
[1717598414556,0.0104,71000.0,70998.0,0.34592444]
[1717598414737,0.0104,71000.0,70998.0,0.3203392]
[1717598414972,0.0104,71000.0,70998.0,0.25836821]
[1717598415190,0.0104,71000.0,70998.0,0.30147266]
[1717598415617,0.0104,71000.0,70998.0,0.25836821]
[1717598415828,0.0104,71000.0,70998.0,0.30147266]
[1717598416014,0.0104,71000.0,70998.0,0.36338958]
[1717598416231,0.0104,71000.0,70998.0,0.25936821]
[1717598416659,0.0104,71000.0,70998.0,0.30247266]
[1717598416884,0.0104,71000.0,70998.0,0.25936821]
[1717598417101,0.0104,71000.0,70998.0,0.30247266]
[1717598417319,0.00405,70999.0,70998.0,0.91113069]
[1717598417527,0.00405,70999.0,70998.0,0.65006797]
[1717598417743,0.00405,70999.0,70998.0,0.54689159]
[1717598418153,0.00405,70999.0,70998.0,0.38495345]
[1717598418359,0.002,71009.0,71004.0,0.18393945]
[1717598418573,0.002,71009.0,71008.0,0.21305724]
[1717598418979,0.002,71009.0,71008.0,0.07222824]
[1717598419215,0.002,71009.0,71008.0,0.21305724]
[1717598419395,0.002,71009.0,71008.0,0.31305724]
[1717598420790,0.002,71009.0,71008.0,0.17222824]
[1717598421413,0.002,71009.0,71008.0,0.31305724]
[1717598422907,0.002,71009.0,71008.0,0.31405724]
[1717598424187,0.01703521,71010.0,71009.0,0.140827]
[1717598424393,0.16346999,71020.0,71011.0,0.140823]
[1717598424608,0.16346999,71020.0,71018.0,0.07222824]
[1717598424843,0.0208629,71019.0,71018.0,0.07222824]
[1717598426964,0.0208629,71019.0,71018.0,0.17222824]
[1717598427374,0.0208629,71019.0,71018.0,0.33055645]
[1717598427575,0.0208629,71019.0,71018.0,0.31303724]
[1717598427797,0.0208629,71019.0,71018.0,0.33255645]
[1717598428055,0.0208629,71019.0,71018.0,0.31503724]
[1717598428774,0.04600049,71019.0,71018.0,0.31503724]
[1717598429004,0.004,71019.0,71018.0,0.31503724]
[1717598429197,0.004,71019.0,71018.0,0.31603724]
[1717598430131,0.004,71019.0,71018.0,0.07522824]
[1717598430302,0.004,71019.0,71018.0,0.003]
[1717598430303,0.51402293,71019.0,71018.0,0.003]
[1717598430502,0.41982293,71019.0,71018.0,0.001]
[1717598430902,0.39502593,71019.0,71018.0,0.001]
[1717598431185,0.75812593,71019.0,71018.0,0.001]
[1717598431386,0.75812593,71019.0,71018.0,0.002]
[1717598431897,0.75812593,71019.0,71005.0,0.07222824]
[1717598431898,0.0788,71014.0,71005.0,0.07222824]
[1717598432110,0.374461,71013.0,70998.0,0.1]
[1717598432315,0.374461,71013.0,70997.0,0.11533269]
[1717598432316,0.4949271,71013.0,70997.0,0.11533269]
[1717598432631,0.140826,71010.0,70998.0,0.14310445]
[1717598432834,0.14441893,71009.0,70998.0,0.14310445]
[1717598433836,0.28524593,71009.0,70998.0,0.14310445]
[1717598434323,0.24299549,71009.0,70998.0,0.14310445]
[1717598434499,0.140829,71008.0,71005.0,0.07222824]
[1717598434697,0.10216849,71009.0,71005.0,0.07222824]
[1717598434928,0.14083,71008.0,71005.0,0.07222824]
[1717598435522,0.023,71013.0,71005.0,0.07222824]
[1717598435895,0.14441893,71012.0,71005.0,0.07222824]
[1717598436219,0.023,71011.0,71005.0,0.07322824]
[1717598436419,0.14441893,71010.0,71005.0,0.07322824]
[1717598436941,0.14441893,71010.0,71006.0,0.45051204]
[1717598437153,0.6688,71014.0,71006.0,0.45051204]
[1717598437360,0.14441893,71013.0,71006.0,0.45051204]
[1717598437512,0.6688,71014.0,71009.0,0.1]
[1717598437724,0.6688,71014.0,71013.0,0.07222824]
[1717598438546,0.6688,71014.0,71013.0,0.52274028]
[1717598439575,0.6688,71014.0,71013.0,0.62274028]
[1717598439703,0.2688,71014.0,71013.0,0.62274028]
[1717598440113,0.26884,71014.0,71013.0,0.62274028]
[1717598440522,0.26884,71014.0,71013.0,0.52274028]
[1717598441329,0.26884,71014.0,71013.0,0.07222824]
[1717598441549,0.26884,71014.0,71010.0,0.45051204]
[1717598441550,0.41325893,71014.0,71010.0,0.45051204]
[1717598441771,0.16741893,71013.0,71010.0,0.45051204]
[1717598442744,0.16741893,71013.0,71006.0,0.45051204]
[1717598442951,0.30823893,71013.0,71006.0,0.45051204]
[1717598443383,0.30823893,71013.0,71010.0,0.001]
[1717598443575,0.16741893,71013.0,71010.0,0.001]
[1717598444213,0.26884,71014.0,71010.0,0.001]
[1717598444998,0.26884,71014.0,71006.0,0.002]
[1717598444999,0.15146067,71013.0,71006.0,0.002]
[1717598445354,0.140826,71010.0,71006.0,0.002]
[1717598445491,0.140831,71007.0,71006.0,0.003]
[1717598445703,0.140831,71007.0,71006.0,0.002]
[1717598447439,0.140834,71006.0,71000.0,0.04310445]
[1717598447960,0.14441893,71007.0,71000.0,0.04310445]
[1717598448163,0.14441893,71007.0,71001.0,0.04111879]
[1717598448583,0.14441893,71006.0,71001.0,0.04111879]
[1717598448780,0.2342,71002.0,70999.0,0.04111879]
[1717598448983,0.140847,70999.0,70998.0,0.000946]
[1717598449260,0.2342,71002.0,70998.0,0.000946]
[1717598449465,0.1527,71002.0,71001.0,0.07222824]
[1717598449660,0.19,71006.0,71001.0,0.04722824]
[1717598449923,0.0815,71009.0,71006.0,0.001]
[1717598450091,0.74274,71014.0,71006.0,0.001]
[1717598450092,0.74274,71014.0,71007.0,0.1]
[1717598450480,0.74274,71014.0,71008.0,0.01751921]
[1717598450741,0.15274,71014.0,71010.0,0.01751921]
[1717598450944,4e-05,71014.0,71012.0,0.01751921]
[1717598451142,4e-05,71014.0,71013.0,0.04111879]
[1717598451550,4e-05,71014.0,71012.0,0.04172148]
[1717598452197,4e-05,71014.0,71010.0,0.01751921]
[1717598452373,0.02484304,71014.0,71011.0,0.140821]
[1717598452598,4e-05,71014.0,71011.0,0.140821]
[1717598452794,4e-05,71014.0,71010.0,0.1]
[1717598453702,4e-05,71014.0,71010.0,0.240824]
[1717598453906,4e-05,71014.0,71010.0,0.242824]
[1717598454110,4e-05,71014.0,71010.0,0.36839821]
[1717598454313,4e-05,71014.0,71010.0,0.242824]
[1717598454485,4e-05,71014.0,71010.0,0.243824]
[1717598455116,4e-05,71014.0,71010.0,0.102]
[1717598455288,0.07222824,71013.0,71010.0,0.002]
[1717598455490,4e-05,71014.0,71010.0,0.002]
[1717598455903,0.14441893,71013.0,71011.0,0.08373145]
[1717598456228,0.14441893,71013.0,71011.0,0.06280326]
[1717598456229,0.50576265,71012.0,71011.0,0.06280326]
[1717598456388,0.2,71011.0,71010.0,0.003]
[1717598456598,0.28524193,71011.0,71010.0,0.001]
[1717598457304,0.28524193,71011.0,71010.0,0.003]
[1717598457942,0.28524193,71011.0,71010.0,0.001]
[1717598458148,0.14441893,71011.0,71004.0,0.04188641]
[1717598458318,0.14441893,71010.0,71004.0,0.04188641]
[1717598458748,0.19004,71014.0,71004.0,0.04188641]
[1717598459097,0.38131893,71013.0,71008.0,0.04188641]
[1717598459266,0.38131893,71013.0,71006.0,0.06280326]
[1717598459267,0.38131893,71013.0,71006.0,0.04188641]
[1717598459475,0.38131893,71013.0,71010.0,0.001]
[1717598460382,4e-05,71014.0,71010.0,0.101]
[1717598460840,0.14441893,71013.0,71010.0,0.001]
[1717598461603,0.14441893,71013.0,71010.0,0.140824]
[1717598461805,0.14441893,71013.0,71007.0,0.15835021]
[1717598462016,0.14441893,71013.0,71010.0,0.001]
[1717598462399,4e-05,71014.0,71010.0,0.001]
[1717598463010,4e-05,71014.0,71011.0,0.01751921]
[1717598463239,4e-05,71014.0,71013.0,0.14310445]
[1717598463664,4e-05,71014.0,71013.0,0.32580986]
[1717598463864,4e-05,71014.0,71013.0,0.28392345]
[1717598464068,4e-05,71014.0,71013.0,0.30144266]
[1717598464468,4e-05,71014.0,71013.0,0.28392345]
[1717598465449,4e-05,71014.0,71013.0,0.30244266]
[1717598466589,4e-05,71014.0,71013.0,0.30444266]
[1717598467197,4e-05,71014.0,71013.0,0.18692345]
[1717598467398,0.64027593,71014.0,71013.0,0.003]
[1717598467598,1.08582032,71014.0,71013.0,0.003]
[1717598467798,0.140836,71005.0,70999.0,0.08499086]
[1717598468004,0.28525593,71004.0,70998.0,0.000946]
[1717598468306,0.14441893,71004.0,70999.0,0.04310445]
[1717598468499,0.14441893,71004.0,70998.0,0.000946]
[1717598468728,0.28525693,71004.0,70998.0,0.000946]
[1717598468930,0.28525693,71004.0,70999.0,0.04310445]
[1717598469130,0.140839,71003.0,70999.0,0.04310445]
[1717598469334,0.28525793,71003.0,70999.0,0.04310445]
[1717598469773,0.14441893,71003.0,70999.0,0.04410445]
[1717598470109,0.19,71008.0,70999.0,0.04310445]
[1717598470261,0.33441893,71008.0,71000.0,0.01751921]
[1717598470465,0.33441893,71008.0,70999.0,0.001]
[1717598470883,0.33441893,71008.0,71000.0,0.01751921]
[1717598471103,0.33441893,71008.0,70999.0,0.01851921]
[1717598471282,0.140831,71007.0,70999.0,0.06162366]
[1717598471496,0.140831,71007.0,70999.0,0.04410445]
[1717598472260,0.140833,71006.0,70999.0,0.001]
[1717598472488,0.33441893,71008.0,70999.0,0.04410445]
[1717598472722,0.33441893,71008.0,70999.0,0.04510445]
[1717598473029,0.140831,71007.0,70999.0,0.002]
[1717598473244,0.140831,71007.0,70999.0,0.04410445]
[1717598473692,0.140831,71007.0,70999.0,0.002]
[1717598473866,0.140831,71007.0,70999.0,0.04410445]
[1717598474430,0.140831,71007.0,70998.0,0.14405045]
[1717598474615,0.33441893,71008.0,70999.0,0.04310445]
[1717598474829,0.140847,70999.0,70998.0,0.000946]
[1717598475241,0.14441893,70999.0,70998.0,0.000946]
[1717598475461,0.28526593,70999.0,70998.0,0.000946]
[1717598475704,0.56695993,70999.0,70998.0,0.000946]
[1717598475863,0.28526593,70999.0,70998.0,0.000946]
[1717598477713,1.65058652,70999.0,70998.0,0.000946]
[1717598477969,1.90675393,70999.0,70998.0,0.000946]
[1717598478956,1.90775393,70999.0,70998.0,0.000946]
[1717598479133,0.2,70991.0,70979.0,0.04310445]
[1717598479335,0.281702,70997.0,70980.0,0.43336945]
[1717598479336,0.79959345,70990.0,70980.0,0.43336945]
[1717598479540,0.79959345,70990.0,70977.0,0.04310445]
[1717598479541,0.0753,70989.0,70977.0,0.04310445]
[1717598479753,0.2412531,70988.0,70977.0,0.04310445]
[1717598480159,0.140886,70980.0,70977.0,0.04310445]
[1717598480543,0.19,70987.0,70977.0,0.04310445]
[1717598480765,0.140883,70981.0,70977.0,0.04310445]
[1717598480926,0.28530193,70981.0,70977.0,0.04310445]
[1717598481170,0.19,70987.0,70971.0,0.002]
[1717598481171,0.15146387,70980.0,70971.0,0.002]
[1717598481375,0.1516,70979.0,70971.0,0.002]
[1717598481582,0.140898,70973.0,70971.0,0.002]
[1717598481810,0.079,70974.0,70971.0,0.002]
[1717598481811,0.28531893,70972.0,70971.0,0.002]
[1717598482000,0.1516,70979.0,70971.0,0.04510445]
[1717598482197,0.14441893,70978.0,70971.0,0.04510445]
[1717598482398,0.14441893,70978.0,70971.0,0.002]
[1717598482743,0.14441893,70978.0,70971.0,0.04510445]
[1717598482943,0.14441893,70978.0,70971.0,0.002]
[1717598483142,0.05664771,70977.0,70971.0,0.002]
[1717598483355,0.140906,70969.0,70967.0,0.03510445]
[1717598483551,0.140906,70969.0,70966.0,0.03510445]
[1717598483754,0.140906,70969.0,70967.0,0.03510445]
[1717598483963,0.25073777,70968.0,70961.0,0.004]
[1717598484181,0.14092,70962.0,70961.0,0.004]
[1717598484387,0.14441893,70962.0,70961.0,0.004]
[1717598484595,0.28533893,70962.0,70961.0,0.004]
[1717598486224,0.14441893,70962.0,70961.0,0.004]
[1717598486524,0.19,70970.0,70963.0,0.1]
[1717598487154,0.06489555,70983.0,70961.0,0.02151921]
[1717598487155,0.03592359,70996.0,70983.0,0.1]
[1717598487362,0.03592359,70996.0,70976.0,0.2411]
[1717598487363,0.43336945,70997.0,70989.0,0.1]
[1717598487562,0.16107324,70998.0,70989.0,0.1]
[1717598487796,0.16107324,70998.0,70989.0,0.11751921]
[1717598487999,0.16107324,70998.0,70989.0,0.1]
[1717598488273,0.16107324,70998.0,70990.0,0.01751921]
[1717598488531,0.16107324,70998.0,70991.0,0.01751921]
[1717598489053,0.16107324,70998.0,70990.0,0.01751921]
[1717598489985,0.16107324,70998.0,70989.0,0.1]
[1717598490515,0.16741893,70997.0,70986.0,0.03510445]
[1717598490722,0.0070438,70996.0,70986.0,0.03510445]
[1717598490893,0.16741893,70995.0,70984.0,0.1]
[1717598491084,0.16741893,70995.0,70982.0,0.01751921]
[1717598491085,0.00704385,70994.0,70986.0,0.03510445]
[1717598491271,0.16741893,70993.0,70983.0,0.03510445]
[1717598491685,0.16741893,70993.0,70991.0,0.001]
[1717598492005,0.00704394,70992.0,70991.0,0.001]
[1717598492209,0.24821893,70992.0,70991.0,0.001]
[1717598492775,0.24821893,70992.0,70986.0,0.03510445]
[1717598492971,0.16741893,70991.0,70986.0,0.03510445]
[1717598493890,0.01665431,70998.0,70991.0,0.025501]
[1717598494093,0.16741893,70997.0,70991.0,0.025501]
[1717598494503,0.19,70993.0,70991.0,0.025501]
[1717598494730,0.33441893,70993.0,70991.0,0.025501]
[1717598496249,0.33441893,70993.0,70991.0,0.026501]
[1717598496985,0.33441893,70993.0,70991.0,0.025501]
[1717598498225,0.33510622,70992.0,70991.0,0.025501]
[1717598498517,0.38019187,70992.0,70991.0,0.025501]
[1717598498658,0.90796363,70992.0,70991.0,0.025501]
[1717598498960,0.90796363,70992.0,70991.0,0.026501]
[1717598499340,0.90796363,70992.0,70991.0,0.02634732]
[1717598499550,1.06446363,70992.0,70991.0,0.01542286]
[1717598500087,0.86446363,70992.0,70991.0,0.01642286]
[1717598500925,0.19,70993.0,70991.0,0.01642286]
[1717598502631,0.19,70993.0,70991.0,0.01542286]
[1717598503015,0.19,70993.0,70991.0,0.01642286]
[1717598503435,0.19,70993.0,70991.0,0.01542286]
[1717598504065,0.19004,70993.0,70991.0,0.01542286]
[1717598504693,0.19004,70993.0,70991.0,0.01642286]
[1717598506057,0.2069539,70993.0,70991.0,0.01642286]
[1717598507448,0.2069539,70993.0,70991.0,0.01542286]
[1717598507943,0.28527893,70992.0,70991.0,0.01542286]
[1717598508148,0.47307893,70992.0,70991.0,0.01642286]
[1717598510531,0.47311893,70992.0,70991.0,0.01642286]
[1717598511154,0.47311893,70992.0,70991.0,0.01542286]
[1717598511562,0.47311893,70992.0,70991.0,0.01642286]
[1717598511942,0.47311893,70992.0,70991.0,0.01542286]
[1717598512322,0.47311893,70992.0,70991.0,0.01642286]
[1717598514990,0.75483993,70992.0,70991.0,0.01642286]
[1717598515175,0.2,70988.0,70973.0,0.03510445]
[1717598515376,1.13844931,70992.0,70971.0,0.03510445]
[1717598515377,0.140898,70974.0,70971.0,0.03510445]
[1717598515533,0.140898,70973.0,70970.0,0.03510445]
[1717598515911,0.140898,70973.0,70969.0,0.03510445]
[1717598516163,0.140898,70973.0,70971.0,0.03510445]
[1717598516342,0.14441893,70973.0,70970.0,0.03510445]
[1717598516581,0.14441893,70973.0,70972.0,0.03510445]
[1717598516780,0.30831693,70973.0,70972.0,0.03510445]
[1717598517503,0.1409,70972.0,70971.0,0.03510445]
[1717598517711,0.30831893,70972.0,70971.0,0.03510445]
[1717598519369,0.30831893,70972.0,70970.0,0.001]
[1717598519567,0.28532093,70971.0,70970.0,0.001]
[1717598519928,0.30832093,70971.0,70970.0,0.001]
[1717598520117,0.74792593,70971.0,70970.0,0.001]
[1717598520324,0.82622593,70971.0,70970.0,0.001]
[1717598520532,4e-05,70973.0,70961.0,0.004]
[1717598520533,4e-05,70973.0,70967.0,0.03510445]
[1717598520741,4e-05,70973.0,70970.0,0.01751921]
[1717598520945,4e-05,70973.0,70971.0,0.001]
[1717598521154,4e-05,70973.0,70971.0,0.01851921]
[1717598521308,0.140939,70973.0,70971.0,0.001]
[1717598521507,4e-05,70973.0,70971.0,0.01851921]
[1717598521741,4e-05,70973.0,70972.0,0.01751921]
[1717598522088,4e-05,70973.0,70972.0,0.05262366]
[1717598523468,4e-05,70973.0,70972.0,0.29352366]
[1717598523832,4e-05,70973.0,70972.0,0.15262366]
[1717598525159,4e-05,70973.0,70972.0,0.29352366]
[1717598525363,4e-05,70973.0,70972.0,0.53752366]
[1717598525989,4e-05,70973.0,70972.0,0.53852366]
[1717598526856,4e-05,70973.0,70972.0,0.53752366]
[1717598527065,4e-05,70973.0,70972.0,0.39662366]
[1717598527285,4e-05,70973.0,70972.0,0.51602366]
[1717598527611,4e-05,70973.0,70972.0,0.65792366]
[1717598529067,0.05004,70973.0,70972.0,0.65792366]
[1717598529929,0.05004,70973.0,70972.0,0.65692366]
[1717598530134,0.05004,70973.0,70972.0,0.65792366]
[1717598530702,0.05004,70973.0,70972.0,0.65692366]
[1717598531160,0.05004,70973.0,70972.0,0.65792366]
[1717598532429,0.05004,70973.0,70972.0,0.94972466]
[1717598532638,0.05004,70973.0,70972.0,1.25384359]
[1717598533003,0.05004,70973.0,70972.0,1.31644489]
[1717598533617,0.05004,70973.0,70972.0,1.30644489]
[1717598533964,0.05004,70973.0,70972.0,1.28563685]
[1717598534398,0.05004,70973.0,70972.0,0.85941692]
[1717598534646,0.05004,70973.0,70972.0,0.81762366]
[1717598534890,0.05004,70973.0,70972.0,0.81856966]
[1717598535116,0.05004,70973.0,70972.0,0.46165045]
[1717598535286,0.05004,70973.0,70972.0,0.32075045]
[1717598535875,0.05004,70973.0,70972.0,0.31975045]
[1717598536829,0.05004,70973.0,70972.0,0.284646]
[1717598537091,0.29514,70973.0,70972.0,0.31975045]